fUST/lending_fUST_20260526
["ID","MTS","AMOUNT","RATE_DAILY","PERIOD"]
[423040380,1779790241000,-2887.61907531,7.69e-05,2]
[423040374,1779790241000,-2570.12467004,7.536e-05,2]
[423040383,1779790241000,-300.0,7.74e-05,2]
[423040378,1779790241000,-600.0,7.686e-05,2]
[423040514,1779790244000,-256.2,8.404e-05,2]
[423041049,1779790249000,-720.0,8.454e-05,2]
[423041051,1779790249000,-559.0,8.514e-05,2]
[423041052,1779790249000,-77207.10208657,8.6e-05,2]
[423041050,1779790249000,-563.44076233,8.493e-05,2]
[423041048,1779790249000,-306.40107791,8.404e-05,2]
[423041053,1779790250000,-3844.5124191,8.6e-05,2]
[423041054,1779790250000,-484.14,8.6e-05,2]
[423041055,1779790255000,331.33,0.00017808,120]
[423041302,1779790941000,1732.0,0.00014361,30]
[423041303,1779790942000,183.0,0.00014361,30]
[423041309,1779791127000,150.0,0.00014749,30]
[423041310,1779791128000,192.0,0.00014749,30]
[423041345,1779791434000,-604.25309705,5.571e-05,2]
[423041348,1779791434000,-931.85262945,5.571e-05,2]
[423041582,1779791438000,-300.0,5.765e-05,2]
[423041568,1779791438000,-500.0,5.683e-05,2]
[423041574,1779791438000,-500.0,5.683e-05,2]
[423041580,1779791438000,-300.0,5.765e-05,2]
[423041572,1779791438000,-500.0,5.683e-05,2]
[423041576,1779791438000,-500.0,5.683e-05,2]
[423041587,1779791438000,-13444.983576,5.796e-05,2]
[423041584,1779791438000,-415.11275338,5.769e-05,2]
[423041590,1779791438000,-500.0,5.796e-05,2]
[423041592,1779791438000,-166.66,5.888e-05,2]
[423041594,1779791438000,-300.0,5.914e-05,2]
[423041596,1779791438000,-300.0,5.914e-05,2]
[423041600,1779791438000,-300.0,5.914e-05,2]
[423041566,1779791438000,-500.0,5.683e-05,2]
[423041598,1779791438000,-300.0,5.914e-05,2]
[423041604,1779791438000,-300.0,5.914e-05,2]
[423041589,1779791438000,-500.0,5.796e-05,2]
[423041570,1779791438000,-353.96893218,5.683e-05,2]
[423041541,1779791438000,-500.0,5.683e-05,2]
[423041564,1779791438000,-500.0,5.683e-05,2]
[423041531,1779791438000,-300.0,5.626e-05,2]
[423041529,1779791438000,-1200.0,5.626e-05,2]
[423041533,1779791438000,-4880.61383815,5.627e-05,2]
[423041535,1779791438000,-500.0,5.683e-05,2]
[423041527,1779791438000,-3463.8942735,5.571e-05,2]
[423041539,1779791438000,-500.0,5.683e-05,2]
[423041608,1779791438000,-300.0,5.914e-05,2]
[423041545,1779791438000,-500.0,5.683e-05,2]
[423041578,1779791438000,-300.0,5.765e-05,2]
[423041547,1779791438000,-500.0,5.683e-05,2]
[423041554,1779791438000,-500.0,5.683e-05,2]
[423041549,1779791438000,-500.0,5.683e-05,2]
[423041556,1779791438000,-500.0,5.683e-05,2]
[423041558,1779791438000,-500.0,5.683e-05,2]
[423041537,1779791438000,-500.0,5.683e-05,2]
[423041551,1779791438000,-500.0,5.683e-05,2]
[423041560,1779791438000,-500.0,5.683e-05,2]
[423041562,1779791438000,-500.0,5.683e-05,2]
[423041543,1779791438000,-500.0,5.683e-05,2]
[423041606,1779791438000,-300.0,5.914e-05,2]
[423041602,1779791438000,-300.0,5.914e-05,2]
[423041610,1779791438000,-300.0,5.914e-05,2]
[423041650,1779791438000,-226.91,7.638e-05,2]
[423041644,1779791438000,-192.583398,7.47e-05,2]
[423041653,1779791438000,-1000.0,7.871e-05,2]
[423041655,1779791438000,-150.0,8.219e-05,2]
[423041657,1779791438000,-473.72873179,8.219e-05,2]
[423041665,1779791438000,-524.64849091,8.219e-05,2]
[423041671,1779791438000,-500.0,8.219e-05,2]
[423041659,1779791438000,-500.0,8.219e-05,2]
[423041667,1779791438000,-151.5,8.219e-05,2]
[423041669,1779791438000,-500.0,8.219e-05,2]
[423041661,1779791438000,-500.0,8.219e-05,2]
[423041673,1779791438000,-500.0,8.219e-05,2]
[423041663,1779791438000,-500.0,8.219e-05,2]
[423041675,1779791438000,-500.0,8.219e-05,2]
[423041609,1779791438000,-300.0,5.914e-05,2]
[423041679,1779791438000,-500.0,8.219e-05,2]
[423041680,1779791438000,-500.0,8.219e-05,2]
[423041646,1779791438000,-1633.0,7.488e-05,2]
[423041648,1779791438000,-561.5587697,7.622e-05,2]
[423041677,1779791438000,-500.0,8.219e-05,2]
[423041651,1779791438000,-489.83304899,7.769e-05,2]
[423041647,1779791438000,-823.0,7.488e-05,2]
[423041612,1779791438000,-300.0,5.914e-05,2]
[423041611,1779791438000,-300.0,5.914e-05,2]
[423041615,1779791438000,-300.0,5.914e-05,2]
[423041617,1779791438000,-300.0,5.914e-05,2]
[423041619,1779791438000,-600.0,5.914e-05,2]
[423041631,1779791438000,-720.0,6.505e-05,2]
[423041623,1779791438000,-420.0,6.189e-05,2]
[423041621,1779791438000,-1680.0,6.189e-05,2]
[423041614,1779791438000,-300.0,5.914e-05,2]
[423041629,1779791438000,-1299.5955972,6.389e-05,2]
[423041627,1779791438000,-301.0,6.342e-05,2]
[423041632,1779791438000,-174.1931631,6.635e-05,2]
[423041634,1779791438000,-151.0,6.671e-05,2]
[423041636,1779791438000,-2351.0,6.807e-05,2]
[423041638,1779791438000,-587.0,6.807e-05,2]
[423041642,1779791438000,-151.0,7.162e-05,2]
[423041625,1779791438000,-3048.24949739,6.29e-05,2]
[423041640,1779791438000,-864.0,7.156e-05,2]
[423041706,1779791439000,-244.0,8.659e-05,2]
[423041703,1779791439000,-1000.0,8.659e-05,2]
[423041702,1779791439000,-500.0,8.599e-05,2]
[423041700,1779791439000,-500.0,8.493e-05,2]
[423041686,1779791439000,-500.0,8.219e-05,2]
[423041698,1779791439000,-500.0,8.493e-05,2]
[423041694,1779791439000,-1152.0,8.237e-05,2]
[423041696,1779791439000,-150.0,8.493e-05,2]
[423041683,1779791439000,-500.0,8.219e-05,2]
[423041692,1779791439000,-499.48927759,8.219e-05,2]
[423041690,1779791439000,-500.0,8.219e-05,2]
[423041688,1779791439000,-500.0,8.219e-05,2]
[423041717,1779791439000,-500.0,8.767e-05,2]
[423041684,1779791439000,-500.0,8.219e-05,2]
[423041716,1779791439000,-500.0,8.767e-05,2]
[423041727,1779791439000,-438.03436225,8.767e-05,2]
[423041719,1779791439000,-500.0,8.767e-05,2]
[423041742,1779791439000,-5552.41199131,9.1e-05,2]
[423041740,1779791439000,-1613.0,9.061e-05,2]
[423041738,1779791439000,-500.0,9.041e-05,2]
[423041736,1779791439000,-500.0,9.02e-05,2]
[423041731,1779791439000,-412.9343349,8.773e-05,2]
[423041712,1779791439000,-285.7176123,8.766e-05,2]
[423041734,1779791439000,-500.0,8.896e-05,2]
[423041733,1779791439000,-325.8783767,8.773e-05,2]
[423041725,1779791439000,-413.90354769,8.767e-05,2]
[423041714,1779791439000,-151.0,8.766e-05,2]
[423041723,1779791439000,-500.0,8.767e-05,2]
[423041710,1779791439000,-326.0419999,8.766e-05,2]
[423041721,1779791439000,-500.0,8.767e-05,2]
[423041708,1779791439000,-326.065895,8.766e-05,2]
[423041729,1779791439000,-500.0,8.767e-05,2]
[423041862,1779791440000,-30859.99999999,9.1e-05,2]
[423041933,1779791449000,-500.0,5.683e-05,2]
[423041935,1779791449000,-55542.24834448,9.1e-05,2]
[423041931,1779791449000,-300.0,5.683e-05,2]
[423041929,1779791449000,-500.0,5.683e-05,2]
[423041927,1779791449000,-500.0,5.683e-05,2]
[423041925,1779791449000,-5000.0,5.626e-05,2]
[423041963,1779791451000,-703.97930242,9.1e-05,2]
[423041965,1779791464000,152.0,6.801e-05,7]
[423041968,1779791484000,456.7200949,8.773e-05,2]
[423041987,1779791753000,-300.0,5.51e-05,2]
[423041988,1779791764000,-300.0,5.51e-05,2]
[423041990,1779791806000,-500.27419652,5.511e-05,2]
[423042001,1779791817000,-500.0,5.511e-05,2]
[423042003,1779791860000,-300.0,5.51e-05,2]
[423042004,1779791871000,-325.8783767,5.511e-05,2]
[423042011,1779791891000,-71.13546063,5.511e-05,2]
[423042019,1779791901000,-1613.0,5.511e-05,2]
[423042023,1779791921000,-500.0,5.511e-05,2]
[423042029,1779791942000,-500.0,5.511e-05,2]
[423042033,1779791962000,-500.0,5.511e-05,2]
[423042042,1779791982000,-412.9343349,5.511e-05,2]
[423042043,1779792002000,-500.0,5.511e-05,2]
[423042044,1779792023000,-500.0,5.511e-05,2]
[423042077,1779792224000,-300.0,5.509e-05,2]
[423042078,1779792235000,-500.0,5.51e-05,2]
[423042079,1779792277000,-300.0,5.509e-05,2]
[423042095,1779792330000,-326.065895,5.511e-05,2]
[423042096,1779792341000,-63.00766559,5.511e-05,2]
[423042099,1779792363000,-500.0,5.509e-05,2]
[423042098,1779792363000,-500.0,5.511e-05,2]
[423042100,1779792382000,-500.0,5.509e-05,2]
[423042101,1779792393000,-500.0,5.509e-05,2]
[423042104,1779792414000,-500.0,5.509e-05,2]
[423042107,1779792436000,-38.44789642,5.509e-05,2]
[423042106,1779792436000,-461.55210358,5.509e-05,2]
[423042108,1779792436000,-413.90354769,5.509e-05,2]
[423042109,1779792436000,-300.0,5.508e-05,2]
[423042111,1779792436000,-66.2549918,5.509e-05,2]
[423042110,1779792436000,-47.64855589,5.509e-05,2]
[423042112,1779792456000,-433.7450082,5.509e-05,2]
[423042113,1779792466000,-438.03436225,5.509e-05,2]
[423042115,1779792488000,-61.96563775,5.509e-05,2]
[423042114,1779792488000,-61.96563775,5.509e-05,2]
[423042116,1779792529000,-438.03436225,5.509e-05,2]
[423042191,1779792632000,-300.0,5.509e-05,2]
[423042193,1779792632000,-166.72168942,5.511e-05,2]
[423042196,1779792632000,-735.38567006,5.511e-05,2]
[423042408,1779792638000,-500.0,5.509e-05,2]
[423042424,1779792638000,-647.70056873,6.059e-05,2]
[423042422,1779792638000,-647.70056873,6.059e-05,2]
[423042420,1779792638000,-647.70056873,6.059e-05,2]
[423042406,1779792638000,-500.0,5.509e-05,2]
[423042405,1779792638000,-500.0,5.509e-05,2]
[423042403,1779792638000,-500.0,5.509e-05,2]
[423042401,1779792638000,-500.0,5.509e-05,2]
[423042399,1779792638000,-500.0,5.509e-05,2]
[423042386,1779792638000,-500.0,5.509e-05,2]
[423042395,1779792638000,-223.51399391,5.509e-05,2]
[423042390,1779792638000,-500.0,5.509e-05,2]
[423042388,1779792638000,-500.0,5.509e-05,2]
[423042426,1779792638000,-647.70056873,6.059e-05,2]
[423042392,1779792638000,-500.0,5.509e-05,2]
[423042384,1779792638000,-500.0,5.509e-05,2]
[423042381,1779792638000,-288.4409389,5.509e-05,2]
[423042378,1779792638000,-500.0,5.509e-05,2]
[423042375,1779792638000,-472.1806369,5.509e-05,2]
[423042397,1779792638000,-500.0,5.509e-05,2]
[423042416,1779792638000,-500.0,5.509e-05,2]
[423042394,1779792638000,-500.0,5.509e-05,2]
[423042418,1779792638000,-4097.89264052,5.511e-05,2]
[423042460,1779792638000,-500.0,8.219e-05,2]
[423042458,1779792638000,-271.0,7.332e-05,2]
[423042462,1779792638000,-225705.27041223,8.466e-05,2]
[423042456,1779792638000,-587.0,6.666e-05,2]
[423042441,1779792638000,-647.70056873,6.059e-05,2]
[423042443,1779792638000,-647.70056873,6.059e-05,2]
[423042439,1779792638000,-647.70056873,6.059e-05,2]
[423042437,1779792638000,-647.70056873,6.059e-05,2]
[423042452,1779792638000,-420.0,6.06e-05,2]
[423042450,1779792638000,-647.70056873,6.059e-05,2]
[423042428,1779792638000,-647.70056873,6.059e-05,2]
[423042434,1779792638000,-647.70056873,6.059e-05,2]
[423042436,1779792638000,-647.70056873,6.059e-05,2]
[423042447,1779792638000,-647.70056873,6.059e-05,2]
[423042445,1779792638000,-647.70056873,6.059e-05,2]
[423042432,1779792638000,-647.70056873,6.059e-05,2]
[423042430,1779792638000,-647.70056873,6.059e-05,2]
[423042410,1779792638000,-500.0,5.509e-05,2]
[423042414,1779792638000,-500.0,5.509e-05,2]
[423042412,1779792638000,-500.0,5.509e-05,2]
[423042448,1779792638000,-647.70056873,6.059e-05,2]
[423042906,1779792642000,-15503.79903072,8.466e-05,2]
[423043113,1779792644000,-1338.28636415,8.466e-05,2]
[423044827,1779792832000,-500.0,6.059e-05,2]
[423044828,1779792843000,-500.0,6.059e-05,2]
[423044831,1779793110000,150.0,0.00014812,30]
[423044832,1779793111000,245.0,0.00014812,30]
[423044836,1779793281000,263.0,0.00014812,30]
[423044837,1779793367000,1143.86,0.00017808,120]
[423044841,1779793539000,-384.16016369,5.935e-05,2]
[423044840,1779793539000,-500.0,5.935e-05,2]
[423044839,1779793539000,-500.0,5.935e-05,2]
[423044842,1779793539000,-4734.83983631,5.936e-05,2]
[423045020,1779793839000,-2114.85174442,5.818e-05,2]
[423045041,1779793839000,-529.34669223,8.26e-05,2]
[423045021,1779793839000,-385.91608546,5.922e-05,2]
[423045023,1779793839000,-454.91827534,7.585e-05,2]
[423045029,1779793839000,-300.0,8.26e-05,2]
[423045025,1779793839000,-455.38098084,7.922e-05,2]
[423045027,1779793839000,-500.0,8.219e-05,2]
[423045031,1779793839000,-529.34669223,8.26e-05,2]
[423045037,1779793839000,-130.94888597,8.26e-05,2]
[423045039,1779793839000,-398.39780626,8.26e-05,2]
[423045018,1779793839000,-2885.14825558,5.818e-05,2]
[423045033,1779793839000,-529.34669223,8.26e-05,2]
[423045043,1779793839000,-529.34669223,8.26e-05,2]
[423045054,1779793839000,-529.34669223,8.26e-05,2]
[423045053,1779793839000,-529.34669223,8.26e-05,2]
[423045049,1779793839000,-529.34669223,8.26e-05,2]
[423045051,1779793839000,-529.34669223,8.26e-05,2]
[423045062,1779793839000,-280.42476987,8.26e-05,2]
[423045035,1779793839000,-529.34669223,8.26e-05,2]
[423045060,1779793839000,-529.34669223,8.26e-05,2]
[423045058,1779793839000,-529.34669223,8.26e-05,2]
[423045047,1779793839000,-529.34669223,8.26e-05,2]
[423045045,1779793839000,-529.34669223,8.26e-05,2]
[423045057,1779793839000,-529.34669223,8.26e-05,2]
[423045202,1779793844000,-403.64048724,8.264e-05,2]
[423045204,1779793844000,-500.0,8.265e-05,2]
[423045203,1779793844000,-500.0,8.264e-05,2]
[423045201,1779793844000,-248.92192236,8.26e-05,2]
[423045205,1779793844000,-2127.03037812,8.266e-05,2]
[423045324,1779795032000,-581.3955505,7.456e-05,2]
[423045302,1779795032000,-640.18724338,7.456e-05,2]
[423045304,1779795032000,-222.40317451,7.456e-05,2]
[423045306,1779795032000,-269.08724583,7.456e-05,2]
[423045312,1779795032000,-387.07425221,7.456e-05,2]
[423045320,1779795032000,-1682.18430096,7.456e-05,2]
[423045322,1779795032000,-1625.44498866,7.456e-05,2]
[423045336,1779795032000,-524.5868197,7.682e-05,2]
[423045330,1779795032000,-524.5868197,7.682e-05,2]
[423045327,1779795032000,-3554.84465125,7.456e-05,2]
[423045339,1779795032000,-524.5868197,7.682e-05,2]
[423045341,1779795032000,-139.49597648,7.682e-05,2]
[423045333,1779795032000,-524.5868197,7.682e-05,2]
[423045434,1779795038000,-385.09084322,7.682e-05,2]
[423045436,1779795038000,-524.5868197,7.682e-05,2]
[423045438,1779795038000,-524.5868197,7.682e-05,2]
[423045440,1779795038000,-379.99089642,7.682e-05,2]
[423045442,1779795038000,-144.59592328,7.682e-05,2]
[423045444,1779795038000,-524.5868197,7.682e-05,2]
[423045448,1779795038000,-524.5868197,7.682e-05,2]
[423045451,1779795038000,-369.09014413,7.683e-05,2]
[423045453,1779795038000,-960.89732821,7.683e-05,2]
[423045446,1779795038000,-524.5868197,7.682e-05,2]
[423045703,1779795041000,-304.0,7.683e-05,2]
[423045761,1779795043000,-1361.59929294,7.683e-05,2]
[423045763,1779795044000,-301.49661939,7.905e-05,2]
[423045762,1779795044000,-2373.50337885,7.683e-05,2]
[423045794,1779795049000,-5000.0,7.826e-05,2]
[423045795,1779795049000,-45.82038061,7.905e-05,2]
[423045796,1779795049000,-3187.51376641,7.966e-05,2]
[423045797,1779795050000,-675.7404708,7.966e-05,2]
[423045799,1779795092000,-1075.97265863,7.381e-05,2]
[423045802,1779795547000,-152.0,6.803e-05,7]
[423045803,1779795600000,-500.0,7.091e-05,2]
[423045812,1779795653000,-262.5808484,7.091e-05,2]
[423045813,1779795707000,-500.0,7.091e-05,2]
[423045814,1779795760000,-384.16016369,7.091e-05,2]
[423045819,1779795813000,-367.81439068,7.092e-05,2]
[423045820,1779795867000,-1152.0,7.092e-05,2]
[423045821,1779796227000,266.0,0.00014942,30]
[423045902,1779796232000,-500.0,7.453e-05,2]
[423045878,1779796232000,-490.62408052,7.013e-05,2]
[423045884,1779796232000,-1204.23062129,7.013e-05,2]
[423045892,1779796232000,-3305.14529819,7.013e-05,2]
[423045894,1779796232000,-584.66490454,7.083e-05,2]
[423045896,1779796232000,-2336.32095856,7.083e-05,2]
[423045897,1779796232000,-360.45810287,7.088e-05,2]
[423045898,1779796232000,-300.0,7.091e-05,2]
[423045905,1779796232000,-500.0,7.453e-05,2]
[423045904,1779796232000,-500.0,7.453e-05,2]
[423045903,1779796232000,-500.0,7.453e-05,2]
[423045901,1779796232000,-500.0,7.453e-05,2]
[423045906,1779796232000,-500.0,7.453e-05,2]
[423045908,1779796232000,-500.0,7.453e-05,2]
[423045907,1779796232000,-500.0,7.453e-05,2]
[423045910,1779796232000,-500.0,7.453e-05,2]
[423045909,1779796232000,-500.0,7.453e-05,2]
[423045911,1779796232000,-622.97144111,7.455e-05,2]
[423045912,1779796232000,-2429.88929473,7.455e-05,2]
[423045900,1779796232000,-500.0,7.453e-05,2]
[423045917,1779796239000,-500.0,7.453e-05,2]
[423045919,1779796239000,-506.468086,7.453e-05,2]
[423045921,1779796239000,-61.99646972,7.455e-05,2]
[423045918,1779796239000,-500.0,7.453e-05,2]
[423045920,1779796239000,-500.0,7.453e-05,2]
[423045924,1779796239000,-537.75687396,7.529e-05,2]
[423045925,1779796239000,-2368.15348893,7.529e-05,2]
[423045922,1779796239000,-3938.41896387,7.455e-05,2]
[423045926,1779796239000,-170.61753223,7.603e-05,2]
[423045923,1779796239000,-1668.32400615,7.455e-05,2]
[423045967,1779796244000,-300.0,7.603e-05,2]
[423045965,1779796244000,-129.38246777,7.603e-05,2]
[423045971,1779796244000,-300.0,7.603e-05,2]
[423045986,1779796244000,-188.55174501,7.603e-05,2]
[423045984,1779796244000,-111.44825499,7.603e-05,2]
[423045977,1779796244000,-300.0,7.603e-05,2]
[423045975,1779796244000,-96.55075091,7.603e-05,2]
[423045988,1779796244000,-300.0,7.603e-05,2]
[423045969,1779796244000,-300.0,7.603e-05,2]
[423045992,1779796244000,-300.0,7.603e-05,2]
[423045982,1779796244000,-300.0,7.603e-05,2]
[423046026,1779796244000,-2702.50000204,7.666e-05,2]
[423046024,1779796244000,-386.56,7.666e-05,2]
[423046016,1779796244000,-37611.15468993,7.666e-05,2]
[423045973,1779796244000,-203.44924909,7.603e-05,2]
[423045996,1779796244000,-300.0,7.603e-05,2]
[423045994,1779796244000,-300.0,7.603e-05,2]
[423045980,1779796244000,-300.0,7.603e-05,2]
[423045990,1779796244000,-300.0,7.603e-05,2]
[423045998,1779796244000,-16255.26820681,7.666e-05,2]
[423046045,1779796250000,-500.0,7.453e-05,2]
[423046044,1779796250000,-500.0,7.453e-05,2]
[423046046,1779796250000,-500.0,7.453e-05,2]
[423046048,1779796250000,-500.0,7.453e-05,2]
[423046047,1779796250000,-500.0,7.453e-05,2]
[423046050,1779796250000,-500.0,7.453e-05,2]
[423046053,1779796250000,-350.0,7.453e-05,2]
[423046052,1779796250000,-500.0,7.453e-05,2]
[423046054,1779796250000,-23403.46091168,7.566e-05,2]
[423046049,1779796250000,-500.0,7.453e-05,2]
[423046051,1779796250000,-500.0,7.453e-05,2]
[423046055,1779796506000,-960.89732821,6.444e-05,2]
[423046056,1779796521000,243.0,0.00014704,30]
[423046612,1779796701000,1181.0,0.00014704,30]
[423047135,1779796887000,1106.0,0.00014942,30]
[423047139,1779797185000,203.0,0.0001476,30]
[423047140,1779797195000,152.0,0.00014768,30]
[423047141,1779797276000,338.6982689,4.846e-05,2]
[423047142,1779797302000,227.0,0.00014497,30]
[423047143,1779797387000,174.1931631,4.804e-05,2]
[423047194,1779797431000,-1172.52399493,5.674e-05,2]
[423047196,1779797431000,-494.18575498,5.674e-05,2]
[423047192,1779797431000,-311.44750082,5.674e-05,2]
[423047189,1779797431000,-649.05119687,5.674e-05,2]
[423047188,1779797431000,-188.399555,5.276e-05,2]
[423047186,1779797431000,-5000.0,5.224e-05,2]
[423047445,1779797438000,-1960.51779096,5.674e-05,2]
[423047465,1779797438000,-300.0,5.729e-05,2]
[423047471,1779797438000,-662.75197778,5.729e-05,2]
[423047466,1779797438000,-300.0,5.729e-05,2]
[423047467,1779797438000,-300.0,5.729e-05,2]
[423047470,1779797438000,-34.65571821,5.729e-05,2]
[423047464,1779797438000,-292.88759959,5.674e-05,2]
[423047469,1779797438000,-1165.34428179,5.729e-05,2]
[423047473,1779797438000,-124.33113682,5.729e-05,2]
[423047472,1779797438000,-538.42084096,5.729e-05,2]
[423047475,1779797438000,-662.75197778,5.729e-05,2]
[423047481,1779797438000,-11.61565445,5.729e-05,2]
[423047479,1779797438000,-662.75197778,5.729e-05,2]
[423047477,1779797438000,-662.75197778,5.729e-05,2]
[423047468,1779797438000,-300.0,5.729e-05,2]
[423047607,1779797443000,-651.13632333,5.729e-05,2]
[423047617,1779797443000,-662.75197778,5.729e-05,2]
[423047609,1779797443000,-662.75197778,5.729e-05,2]
[423047621,1779797443000,-662.75197778,5.729e-05,2]
[423047611,1779797443000,-662.75197778,5.729e-05,2]
[423047615,1779797443000,-662.75197778,5.729e-05,2]
[423047623,1779797443000,-9925.11756773,5.73e-05,2]
[423047613,1779797443000,-662.75197778,5.729e-05,2]
[423047619,1779797443000,-662.75197778,5.729e-05,2]
[423048001,1779797446000,-3519.86600827,5.73e-05,2]
[423048008,1779797446000,-456.7200949,6.237e-05,2]
[423048014,1779797446000,-300.0,6.302e-05,2]
[423048005,1779797446000,-166.66,5.965e-05,2]
[423048003,1779797446000,-404.25625241,5.76e-05,2]
[423048016,1779797446000,-1680.0,6.302e-05,2]
[423048020,1779797446000,-188.399555,6.387e-05,2]
[423048007,1779797446000,-561.5587697,5.968e-05,2]
[423048018,1779797446000,-3048.24949739,6.344e-05,2]
[423048012,1779797446000,-420.0,6.302e-05,2]
[423048010,1779797446000,-301.0,6.302e-05,2]
[423048024,1779797446000,-151.0,6.5e-05,2]
[423048029,1779797446000,-152.0,6.805e-05,7]
[423048028,1779797446000,-151.0,6.778e-05,2]
[423048031,1779797446000,-587.0,6.932e-05,2]
[423048026,1779797446000,-151.0,6.5e-05,2]
[423048022,1779797446000,-226.91,6.487e-05,2]
[423048095,1779797447000,-500.0,8.219e-05,2]
[423048060,1779797447000,-151.5531853,7.883e-05,2]
[423048056,1779797447000,-151.0,7.876e-05,2]
[423048062,1779797447000,-600.0,8.125e-05,2]
[423048079,1779797447000,-300.60770636,8.219e-05,2]
[423048064,1779797447000,-150.0,8.2e-05,10]
[423048077,1779797447000,-151.5,8.219e-05,2]
[423048073,1779797447000,-159.51940716,8.219e-05,2]
[423048091,1779797447000,-151.5,8.219e-05,2]
[423048089,1779797447000,-524.64849091,8.219e-05,2]
[423048075,1779797447000,-151.5,8.219e-05,2]
[423048054,1779797447000,-152.7630595,7.876e-05,2]
[423048066,1779797447000,-500.0,8.219e-05,2]
[423048069,1779797447000,-500.0,8.219e-05,2]
[423048067,1779797447000,-500.0,8.219e-05,2]
[423048052,1779797447000,-326.0419999,7.876e-05,2]
[423048050,1779797447000,-456.7502812,7.876e-05,2]
[423048048,1779797447000,-477.02237784,7.76e-05,2]
[423048044,1779797447000,-823.0,7.625e-05,2]
[423048046,1779797447000,-3292.0,7.625e-05,2]
[423048037,1779797447000,-456.642894,7.054e-05,2]
[423048042,1779797447000,-152.0,7.596e-05,2]
[423048040,1779797447000,-275.1908863,7.054e-05,2]
[423048034,1779797447000,-2351.0,6.932e-05,2]
[423048071,1779797447000,-212.50363982,8.219e-05,2]
[423048088,1779797447000,-500.0,8.219e-05,2]
[423048058,1779797447000,-151.0,7.876e-05,2]
[423048083,1779797447000,-160.00241562,8.219e-05,2]
[423048143,1779797447000,-897.85536056,8.388e-05,2]
[423048130,1779797447000,-500.0,8.219e-05,2]
[423048134,1779797447000,-500.0,8.219e-05,2]
[423048136,1779797447000,-499.48927759,8.219e-05,2]
[423048132,1779797447000,-500.0,8.219e-05,2]
[423048141,1779797447000,-3133.81967179,8.377e-05,2]
[423048138,1779797447000,-151.345826,8.219e-05,2]
[423048139,1779797447000,-784.2391571,8.26e-05,2]
[423048128,1779797447000,-500.0,8.219e-05,2]
[423048124,1779797447000,-500.0,8.219e-05,2]
[423048126,1779797447000,-500.0,8.219e-05,2]
[423048122,1779797447000,-500.0,8.219e-05,2]
[423048113,1779797447000,-500.0,8.219e-05,2]
[423048086,1779797447000,-473.72873179,8.219e-05,2]
[423048117,1779797447000,-251.00361274,8.219e-05,2]
[423048081,1779797447000,-151.5,8.219e-05,2]
[423048097,1779797447000,-500.0,8.219e-05,2]
[423048093,1779797447000,-500.0,8.219e-05,2]
[423048099,1779797447000,-500.0,8.219e-05,2]
[423048103,1779797447000,-413.90354769,8.219e-05,2]
[423048115,1779797447000,-500.0,8.219e-05,2]
[423048105,1779797447000,-500.0,8.219e-05,2]
[423048111,1779797447000,-500.0,8.219e-05,2]
[423048109,1779797447000,-500.0,8.219e-05,2]
[423048120,1779797447000,-248.99638726,8.219e-05,2]
[423048107,1779797447000,-500.0,8.219e-05,2]
[423048101,1779797447000,-500.0,8.219e-05,2]
[423048908,1779797498000,10000.0,0.00015,100]
[423048911,1779797603000,233.0,0.0001476,30]
[423048912,1779797751000,3453.95,0.00017808,120]
[423048916,1779797786000,249.0,0.0001476,30]
[423048917,1779797835000,328.268568,5.006e-05,2]
[423048918,1779797835000,1000.0,5.006e-05,2]
[423048920,1779797835000,1000.0,5.006e-05,2]
[423048919,1779797835000,1000.0,5.006e-05,2]
[423048922,1779797836000,671.731432,5.006e-05,2]
[423048921,1779797836000,1000.0,5.006e-05,2]
[423048924,1779797868000,328.268568,5.006e-05,2]
[423048923,1779797868000,-292.88759959,5.065e-05,2]
[423048925,1779797872000,-500.00215383,5.006e-05,2]
[423048926,1779797875000,-500.0,5.006e-05,2]
[423048927,1779797880000,-500.0,5.006e-05,2]
[423048928,1779797881000,-500.0,5.006e-05,2]
[423048929,1779797883000,-500.0,5.006e-05,2]
[423048930,1779797902000,-500.0,5.006e-05,2]
[423048931,1779797906000,-208.12692235,5.006e-05,2]
[423048932,1779797908000,-377.41967901,5.006e-05,2]
[423048933,1779797910000,-500.0,5.006e-05,2]
[423048935,1779797922000,-48.42580285,5.006e-05,2]